{"text_format":"1","workbook":"xlsx","n_sheets":5,"sheets":["(parametros definidos)","Listas","SolCotizacion","csv","Precios"],"not_rendered":{"charts":0,"images":2,"macros":1,"external_links":1,"defined_names":13,"comments":0,"pivot_tables":0},"unopened":[],"bounds":{"document_bytes":16777216,"sheet_cells":100000,"rows_first":2000,"rows_last":500,"rows_between":2000,"halvings":0,"cell_chars":16384,"cell_head_chars":4096},"cells_cut":0,"cells_raw":0,"read":"whole","date_system":"1900"}

{"sheet":"(parametros definidos)","index":0,"n_rows":67,"n_cols":7,"rows_kept":67,"cut":false,"hidden":true,"merged":[[7,2,7,6]]}
[null,null,"Precios","Guia del maestro","Manual para estudiantes","Proveedor"]
[null,null,"lote1",4510,4344,"A"]
[null,null,"lote2",5000,5500,"B"]
[null,null,"lote3",3750,3950,"B"]
[null,null,"lote4",4500,4700,"C"]
[null,null,"lote5",2800,3500,"C"]
[]
[null,null,"Listas"]
[null,null,"Norte de Santander","Valle","Sucre","Antioquia","Atlántico"]
[null,null," Arauca"," Cauca"," Córdoba","Medellin"," Barranquilla"]
[null,null," Meta"," Palmira"," Montería",null," Soledad"]
[null,null," Soacha"," Cali"," Cartagena.",null," Valledupar"]
[null,null,"Neiva"," Manizales.",null,null," Santa Marta"]
[null,null,"Ibagué"]
[]
[]
[null,"lote","descripción","Guía del maestro","proveedor","llave"]
[{"$f":"B18&C18","v":" lote 1 Norte de Santander, Arauca, Meta, Soacha, Neiva e Ibagué.Manuales de lectura y escritura para estudiantes - primero de Primaria"}," lote 1 Norte de Santander, Arauca, Meta, Soacha, Neiva e Ibagué.","Manuales de lectura y escritura para estudiantes - primero de Primaria",4510,"Chapito libros",{"$f":"\"Lote 1 - \"&C18","v":"Lote 1 - Manuales de lectura y escritura para estudiantes - primero de Primaria"}," lote 1 Norte de Santander, Arauca, Meta, Soacha, Neiva e Ibagué."]
[{"$f":"B19&C19","v":" lote 1 Norte de Santander, Arauca, Meta, Soacha, Neiva e Ibagué.Guías para docentes - primero de primaria"}," lote 1 Norte de Santander, Arauca, Meta, Soacha, Neiva e Ibagué.","Guías para docentes - primero de primaria",4344,"Chapito libros",{"$f":"\"Lote 1 - \"&C19","v":"Lote 1 - Guías para docentes - primero de primaria"}," lote 2 Valle, Cauca, Palmira, Cali, Manizales."]
[" lote 1 Norte de Santander, Arauca, Meta, Soacha, Neiva e Ibagué.Manuales de lectura y escritura para estudiantes - segundo de primaria"," lote 1 Norte de Santander, Arauca, Meta, Soacha, Neiva e Ibagué.","Manuales de lectura y escritura para estudiantes - segundo de primaria",5000,"Chapito libros","Lote 1 - Manuales de lectura y escritura para estudiantes - segundo de primaria"," lote 3 Sucre, Córdoba, Montería, Cartagena."]
[" lote 1 Norte de Santander, Arauca, Meta, Soacha, Neiva e Ibagué.Guías para docentes - segundo de primaria"," lote 1 Norte de Santander, Arauca, Meta, Soacha, Neiva e Ibagué.","Guías para docentes - segundo de primaria",5500,"Chapito libros","Lote 1 - Guías para docentes - segundo de primaria"," lote 4 Antioquia, Medellín."]
[" lote 1 Norte de Santander, Arauca, Meta, Soacha, Neiva e Ibagué.Manuales de lectura y escritura para estudiantes - tercero de primaria"," lote 1 Norte de Santander, Arauca, Meta, Soacha, Neiva e Ibagué.","Manuales de lectura y escritura para estudiantes - tercero de primaria",3750,"Chapito libros","Lote 1 - Manuales de lectura y escritura para estudiantes - tercero de primaria"," lote 5 Atlántico, Barranquilla, Soledad, Valledupar, Santa Marta"]
[" lote 1 Norte de Santander, Arauca, Meta, Soacha, Neiva e Ibagué.Guías para docentes - tercero de primaria"," lote 1 Norte de Santander, Arauca, Meta, Soacha, Neiva e Ibagué.","Guías para docentes - tercero de primaria",3950,"Chapito libros","Lote 1 - Guías para docentes - tercero de primaria"]
[" lote 1 Norte de Santander, Arauca, Meta, Soacha, Neiva e Ibagué.Manuales de lectura y escritura para estudiantes - cuarto de primaria"," lote 1 Norte de Santander, Arauca, Meta, Soacha, Neiva e Ibagué.","Manuales de lectura y escritura para estudiantes - cuarto de primaria",4500,"Chapito libros","Lote 1 - Manuales de lectura y escritura para estudiantes - cuarto de primaria"]
[" lote 1 Norte de Santander, Arauca, Meta, Soacha, Neiva e Ibagué.Guías para docentes - cuarto de primaria"," lote 1 Norte de Santander, Arauca, Meta, Soacha, Neiva e Ibagué.","Guías para docentes - cuarto de primaria",4700,"Chapito libros","Lote 1 - Guías para docentes - cuarto de primaria"]
[" lote 1 Norte de Santander, Arauca, Meta, Soacha, Neiva e Ibagué.Manuales de lectura y escritura para estudiantes - quinto de primaria"," lote 1 Norte de Santander, Arauca, Meta, Soacha, Neiva e Ibagué.","Manuales de lectura y escritura para estudiantes - quinto de primaria",2800,"Chapito libros","Lote 1 - Manuales de lectura y escritura para estudiantes - quinto de primaria"]
[" lote 1 Norte de Santander, Arauca, Meta, Soacha, Neiva e Ibagué.Guías para docentes - quinto de primaria"," lote 1 Norte de Santander, Arauca, Meta, Soacha, Neiva e Ibagué.","Guías para docentes - quinto de primaria",3500,"Chapito libros","Lote 1 - Guías para docentes - quinto de primaria"]
[" lote 2 Valle, Cauca, Palmira, Cali, Manizales.Manuales de lectura y escritura para estudiantes - primero de Primaria"," lote 2 Valle, Cauca, Palmira, Cali, Manizales.","Manuales de lectura y escritura para estudiantes - primero de Primaria",{"$f":"+$D$18*G28","v":7977.088640815683},"impresión el pañuelo",{"$f":"\"Lote 2 - \"&C28","v":"Lote 2 - Manuales de lectura y escritura para estudiantes - primero de Primaria"},{"$f":"+RAND()+1","v":1.7687557961897302}]
[" lote 2 Valle, Cauca, Palmira, Cali, Manizales.Guías para docentes - primero de primaria"," lote 2 Valle, Cauca, Palmira, Cali, Manizales.","Guías para docentes - primero de primaria",{"$f":"+$D$19*G29","v":7415.2933914649593},"impresión el pañuelo",{"$f":"\"Lote 2 - \"&C29","v":"Lote 2 - Guías para docentes - primero de primaria"},{"$f":"+RAND()+1","v":1.7070196573353957}]
[" lote 2 Valle, Cauca, Palmira, Cali, Manizales.Manuales de lectura y escritura para estudiantes - segundo de primaria"," lote 2 Valle, Cauca, Palmira, Cali, Manizales.","Manuales de lectura y escritura para estudiantes - segundo de primaria",{"$f":"+$D$20*G30","v":6759.2281948988339},"impresión el pañuelo","Lote 2 - Manuales de lectura y escritura para estudiantes - segundo de primaria",1.3518456389797668]
[" lote 2 Valle, Cauca, Palmira, Cali, Manizales.Guías para docentes - segundo de primaria"," lote 2 Valle, Cauca, Palmira, Cali, Manizales.","Guías para docentes - segundo de primaria",{"$f":"+$D$21*G31","v":8003.4433855784528},"impresión el pañuelo","Lote 2 - Guías para docentes - segundo de primaria",1.4551715246506278]
[" lote 2 Valle, Cauca, Palmira, Cali, Manizales.Manuales de lectura y escritura para estudiantes - tercero de primaria"," lote 2 Valle, Cauca, Palmira, Cali, Manizales.","Manuales de lectura y escritura para estudiantes - tercero de primaria",{"$f":"+$D$22*G32","v":5946.9731339068776},"impresión el pañuelo","Lote 2 - Manuales de lectura y escritura para estudiantes - tercero de primaria",1.5858595023751674]
[" lote 2 Valle, Cauca, Palmira, Cali, Manizales.Guías para docentes - tercero de primaria"," lote 2 Valle, Cauca, Palmira, Cali, Manizales.","Guías para docentes - tercero de primaria",{"$f":"+$D$23*G33","v":7104.4343211290188},"impresión el pañuelo","Lote 2 - Guías para docentes - tercero de primaria",1.7985909673744351]
[" lote 2 Valle, Cauca, Palmira, Cali, Manizales.Manuales de lectura y escritura para estudiantes - cuarto de primaria"," lote 2 Valle, Cauca, Palmira, Cali, Manizales.","Manuales de lectura y escritura para estudiantes - cuarto de primaria",{"$f":"+$D$24*G34","v":7293.4910611970463},"impresión el pañuelo","Lote 2 - Manuales de lectura y escritura para estudiantes - cuarto de primaria",1.6207757913771215]
[" lote 2 Valle, Cauca, Palmira, Cali, Manizales.Guías para docentes - cuarto de primaria"," lote 2 Valle, Cauca, Palmira, Cali, Manizales.","Guías para docentes - cuarto de primaria",{"$f":"+$D$25*G35","v":6317.7785754499373},"impresión el pañuelo","Lote 2 - Guías para docentes - cuarto de primaria",1.3442082075425399]
[" lote 2 Valle, Cauca, Palmira, Cali, Manizales.Manuales de lectura y escritura para estudiantes - quinto de primaria"," lote 2 Valle, Cauca, Palmira, Cali, Manizales.","Manuales de lectura y escritura para estudiantes - quinto de primaria",{"$f":"+$D$26*G36","v":4756.7507955109522},"impresión el pañuelo","Lote 2 - Manuales de lectura y escritura para estudiantes - quinto de primaria",1.6988395698253402]
[" lote 2 Valle, Cauca, Palmira, Cali, Manizales.Guías para docentes - quinto de primaria"," lote 2 Valle, Cauca, Palmira, Cali, Manizales.","Guías para docentes - quinto de primaria",{"$f":"+$D$27*G$37","v":5736.7534384148385},"impresión el pañuelo","Lote 2 - Guías para docentes - quinto de primaria",1.6390724109756682]
[" lote 3 Sucre, Córdoba, Montería, Cartagena.Manuales de lectura y escritura para estudiantes - primero de Primaria"," lote 3 Sucre, Córdoba, Montería, Cartagena.","Manuales de lectura y escritura para estudiantes - primero de Primaria",{"$f":"+$D$18*G38","v":6270.0452009922119},"sx impresiones",{"$f":"\"Lote 3 - \"&C38","v":"Lote 3 - Manuales de lectura y escritura para estudiantes - primero de Primaria"},1.3902539248319761]
[" lote 3 Sucre, Córdoba, Montería, Cartagena.Guías para docentes - primero de primaria"," lote 3 Sucre, Córdoba, Montería, Cartagena.","Guías para docentes - primero de primaria",{"$f":"+$D$19*G39","v":8182.1115798748597},"sx impresiones",{"$f":"\"Lote 3 - \"&C39","v":"Lote 3 - Guías para docentes - primero de primaria"},1.8835431813708241]
[" lote 3 Sucre, Córdoba, Montería, Cartagena.Manuales de lectura y escritura para estudiantes - segundo de primaria"," lote 3 Sucre, Córdoba, Montería, Cartagena.","Manuales de lectura y escritura para estudiantes - segundo de primaria",{"$f":"+$D$20*G40","v":9929.1005579468401},"sx impresiones","Lote 3 - Manuales de lectura y escritura para estudiantes - segundo de primaria",1.9858201115893679]
[" lote 3 Sucre, Córdoba, Montería, Cartagena.Guías para docentes - segundo de primaria"," lote 3 Sucre, Córdoba, Montería, Cartagena.","Guías para docentes - segundo de primaria",{"$f":"+$D$21*G41","v":7686.8943508624297},"sx impresiones","Lote 3 - Guías para docentes - segundo de primaria",1.39761715470226]
[" lote 3 Sucre, Córdoba, Montería, Cartagena.Manuales de lectura y escritura para estudiantes - tercero de primaria"," lote 3 Sucre, Córdoba, Montería, Cartagena.","Manuales de lectura y escritura para estudiantes - tercero de primaria",{"$f":"+$D$22*G42","v":6402.1735595899827},"sx impresiones","Lote 3 - Manuales de lectura y escritura para estudiantes - tercero de primaria",1.7072462825573287]
[" lote 3 Sucre, Córdoba, Montería, Cartagena.Guías para docentes - tercero de primaria"," lote 3 Sucre, Córdoba, Montería, Cartagena.","Guías para docentes - tercero de primaria",{"$f":"+$D$23*G43","v":6143.0890775570488},"sx impresiones","Lote 3 - Guías para docentes - tercero de primaria",1.555212424697987]
[" lote 3 Sucre, Córdoba, Montería, Cartagena.Manuales de lectura y escritura para estudiantes - cuarto de primaria"," lote 3 Sucre, Córdoba, Montería, Cartagena.","Manuales de lectura y escritura para estudiantes - cuarto de primaria",{"$f":"+$D$24*G44","v":4913.5529937983902},"sx impresiones","Lote 3 - Manuales de lectura y escritura para estudiantes - cuarto de primaria",1.0919006652885312]
[" lote 3 Sucre, Córdoba, Montería, Cartagena.Guías para docentes - cuarto de primaria"," lote 3 Sucre, Córdoba, Montería, Cartagena.","Guías para docentes - cuarto de primaria",{"$f":"+$D$25*G45","v":6593.1493597395893},"sx impresiones","Lote 3 - Guías para docentes - cuarto de primaria",1.4027977361148063]
[" lote 3 Sucre, Córdoba, Montería, Cartagena.Manuales de lectura y escritura para estudiantes - quinto de primaria"," lote 3 Sucre, Córdoba, Montería, Cartagena.","Manuales de lectura y escritura para estudiantes - quinto de primaria",{"$f":"+$D$26*G46","v":3731.6915737910663},"sx impresiones","Lote 3 - Manuales de lectura y escritura para estudiantes - quinto de primaria",1.3327469906396665]
[" lote 3 Sucre, Córdoba, Montería, Cartagena.Guías para docentes - quinto de primaria"," lote 3 Sucre, Córdoba, Montería, Cartagena.","Guías para docentes - quinto de primaria",{"$f":"+$D$27*G$37","v":5736.7534384148385},"sx impresiones","Lote 3 - Guías para docentes - quinto de primaria",1.7394170633498345]
[" lote 4 Antioquia, Medellín.Manuales de lectura y escritura para estudiantes - primero de Primaria"," lote 4 Antioquia, Medellín.","Manuales de lectura y escritura para estudiantes - primero de Primaria",{"$f":"+$D$18*G48","v":8424.4752746029226},"impresión y distribución mambo",{"$f":"\"Lote 4 - \"&C48","v":"Lote 4 - Manuales de lectura y escritura para estudiantes - primero de Primaria"},1.8679546063421113]
[" lote 4 Antioquia, Medellín.Guías para docentes - primero de primaria"," lote 4 Antioquia, Medellín.","Guías para docentes - primero de primaria",{"$f":"+$D$19*G49","v":7216.512978749759},"impresión y distribución mambo",{"$f":"\"Lote 4 - \"&C49","v":"Lote 4 - Guías para docentes - primero de primaria"},1.6612598938190053]
[" lote 4 Antioquia, Medellín.Manuales de lectura y escritura para estudiantes - segundo de primaria"," lote 4 Antioquia, Medellín.","Manuales de lectura y escritura para estudiantes - segundo de primaria",{"$f":"+$D$20*G50","v":9834.754678233865},"impresión y distribución mambo","Lote 4 - Manuales de lectura y escritura para estudiantes - segundo de primaria",1.9669509356467729]
[" lote 4 Antioquia, Medellín.Guías para docentes - segundo de primaria"," lote 4 Antioquia, Medellín.","Guías para docentes - segundo de primaria",{"$f":"+$D$21*G51","v":6475.7895772611382},"impresión y distribución mambo","Lote 4 - Guías para docentes - segundo de primaria",1.1774162867747524]
[" lote 4 Antioquia, Medellín.Manuales de lectura y escritura para estudiantes - tercero de primaria"," lote 4 Antioquia, Medellín.","Manuales de lectura y escritura para estudiantes - tercero de primaria",{"$f":"+$D$22*G52","v":3850.8913124334754},"impresión y distribución mambo","Lote 4 - Manuales de lectura y escritura para estudiantes - tercero de primaria",1.0269043499822601]
[" lote 4 Antioquia, Medellín.Guías para docentes - tercero de primaria"," lote 4 Antioquia, Medellín.","Guías para docentes - tercero de primaria",{"$f":"+$D$23*G53","v":5784.3411220004564},"impresión y distribución mambo","Lote 4 - Guías para docentes - tercero de primaria",1.4643901574684699]
[" lote 4 Antioquia, Medellín.Manuales de lectura y escritura para estudiantes - cuarto de primaria"," lote 4 Antioquia, Medellín.","Manuales de lectura y escritura para estudiantes - cuarto de primaria",{"$f":"+$D$24*G54","v":8969.9175174276188},"impresión y distribución mambo","Lote 4 - Manuales de lectura y escritura para estudiantes - cuarto de primaria",1.9933150038728042]
[" lote 4 Antioquia, Medellín.Guías para docentes - cuarto de primaria"," lote 4 Antioquia, Medellín.","Guías para docentes - cuarto de primaria",{"$f":"+$D$25*G55","v":5846.8013167649451},"impresión y distribución mambo","Lote 4 - Guías para docentes - cuarto de primaria",1.2440002801627543]
[" lote 4 Antioquia, Medellín.Manuales de lectura y escritura para estudiantes - quinto de primaria"," lote 4 Antioquia, Medellín.","Manuales de lectura y escritura para estudiantes - quinto de primaria",{"$f":"+$D$26*G56","v":5298.5168475140199},"impresión y distribución mambo","Lote 4 - Manuales de lectura y escritura para estudiantes - quinto de primaria",1.8923274455407215]
[" lote 4 Antioquia, Medellín.Guías para docentes - quinto de primaria"," lote 4 Antioquia, Medellín.","Guías para docentes - quinto de primaria",{"$f":"+$D$27*G$37","v":5736.7534384148385},"impresión y distribución mambo","Lote 4 - Guías para docentes - quinto de primaria",1.1701012779688784]
[" lote 5 Atlántico, Barranquilla, Soledad, Valledupar, Santa MartaManuales de lectura y escritura para estudiantes - primero de Primaria"," lote 5 Atlántico, Barranquilla, Soledad, Valledupar, Santa Marta","Manuales de lectura y escritura para estudiantes - primero de Primaria",{"$f":"+$D$18*G58","v":4727.0634254047945},"impresiones el tambor",{"$f":"\"Lote 5 - \"&C58","v":"Lote 5 - Manuales de lectura y escritura para estudiantes - primero de Primaria"},1.048129362617471]
[" lote 5 Atlántico, Barranquilla, Soledad, Valledupar, Santa MartaGuías para docentes - primero de primaria"," lote 5 Atlántico, Barranquilla, Soledad, Valledupar, Santa Marta","Guías para docentes - primero de primaria",{"$f":"+$D$19*G59","v":6345.6142465536132},"impresiones el tambor",{"$f":"\"Lote 5 - \"&C59","v":"Lote 5 - Guías para docentes - primero de primaria"},1.4607767602563566]
[" lote 5 Atlántico, Barranquilla, Soledad, Valledupar, Santa MartaManuales de lectura y escritura para estudiantes - segundo de primaria"," lote 5 Atlántico, Barranquilla, Soledad, Valledupar, Santa Marta","Manuales de lectura y escritura para estudiantes - segundo de primaria",{"$f":"+$D$20*G60","v":8477.3052501603033},"impresiones el tambor","Lote 5 - Manuales de lectura y escritura para estudiantes - segundo de primaria",1.6954610500320606]
[" lote 5 Atlántico, Barranquilla, Soledad, Valledupar, Santa MartaGuías para docentes - segundo de primaria"," lote 5 Atlántico, Barranquilla, Soledad, Valledupar, Santa Marta","Guías para docentes - segundo de primaria",{"$f":"+$D$21*G61","v":7792.9848209058946},"impresiones el tambor","Lote 5 - Guías para docentes - segundo de primaria",1.416906331073799]
[" lote 5 Atlántico, Barranquilla, Soledad, Valledupar, Santa MartaManuales de lectura y escritura para estudiantes - tercero de primaria"," lote 5 Atlántico, Barranquilla, Soledad, Valledupar, Santa Marta","Manuales de lectura y escritura para estudiantes - tercero de primaria",{"$f":"+$D$22*G62","v":4886.4622104071714},"impresiones el tambor","Lote 5 - Manuales de lectura y escritura para estudiantes - tercero de primaria",1.3030565894419124]
[" lote 5 Atlántico, Barranquilla, Soledad, Valledupar, Santa MartaGuías para docentes - tercero de primaria"," lote 5 Atlántico, Barranquilla, Soledad, Valledupar, Santa Marta","Guías para docentes - tercero de primaria",{"$f":"+$D$23*G63","v":5802.2853700837113},"impresiones el tambor","Lote 5 - Guías para docentes - tercero de primaria",1.468933005084484]
[" lote 5 Atlántico, Barranquilla, Soledad, Valledupar, Santa MartaManuales de lectura y escritura para estudiantes - cuarto de primaria"," lote 5 Atlántico, Barranquilla, Soledad, Valledupar, Santa Marta","Manuales de lectura y escritura para estudiantes - cuarto de primaria",{"$f":"+$D$24*G64","v":7220.114015114299},"impresiones el tambor","Lote 5 - Manuales de lectura y escritura para estudiantes - cuarto de primaria",1.604469781136511]
[" lote 5 Atlántico, Barranquilla, Soledad, Valledupar, Santa MartaGuías para docentes - cuarto de primaria"," lote 5 Atlántico, Barranquilla, Soledad, Valledupar, Santa Marta","Guías para docentes - cuarto de primaria",{"$f":"+$D$25*G65","v":8123.8282258012368},"impresiones el tambor","Lote 5 - Guías para docentes - cuarto de primaria",1.7284740905960079]
[" lote 5 Atlántico, Barranquilla, Soledad, Valledupar, Santa MartaManuales de lectura y escritura para estudiantes - quinto de primaria"," lote 5 Atlántico, Barranquilla, Soledad, Valledupar, Santa Marta","Manuales de lectura y escritura para estudiantes - quinto de primaria",{"$f":"+$D$26*G66","v":3781.5226779003342},"impresiones el tambor","Lote 5 - Manuales de lectura y escritura para estudiantes - quinto de primaria",1.3505438135358336]
[" lote 5 Atlántico, Barranquilla, Soledad, Valledupar, Santa MartaGuías para docentes - quinto de primaria"," lote 5 Atlántico, Barranquilla, Soledad, Valledupar, Santa Marta","Guías para docentes - quinto de primaria",{"$f":"+$D$27*G$37","v":5736.7534384148385},"impresiones el tambor","Lote 5 - Guías para docentes - quinto de primaria",1.1742183746383099]

{"sheet":"Listas","index":1,"n_rows":6,"n_cols":1,"rows_kept":6,"cut":false,"hidden":true,"merged":[]}
["Lotes"]
["lote 1 Norte de Santander, Arauca, Meta, Soacha, Neiva e Ibagué."]
["lote 2 Valle, Cauca, Palmira, Cali, Manizales."]
["lote 3 Sucre, Córdoba, Montería, Cartagena."]
["lote 4 Antioquia, Medellín."]
["lote 5 Atlántico, Barranquilla, Soledad, Valledupar, Santa Marta"]

{"sheet":"SolCotizacion","index":2,"n_rows":59,"n_cols":20,"rows_kept":59,"cut":false,"hidden":false,"merged":[[58,4,58,6],[58,7,58,8],[52,0,53,12],[55,1,55,6],[55,7,55,8],[56,1,56,6],[56,7,56,8],[13,0,13,12],[26,7,26,9],[30,0,30,12],[27,1,27,3],[27,4,27,6],[27,7,27,9],[27,12,27,13],[50,0,50,12],[15,2,15,3],[19,0,19,12],[26,4,26,6],[26,10,26,11],[32,2,32,4],[34,2,34,4],[35,2,35,4],[37,2,37,4],[38,2,38,4],[26,1,26,3],[36,2,36,4],[27,10,27,11],[39,2,39,4],[40,2,40,4],[41,2,41,4],[0,0,0,12],[1,0,1,12],[3,0,3,12],[5,2,5,8],[5,10,5,12],[7,2,7,8],[7,10,7,12],[9,2,9,8],[9,10,9,11],[11,2,11,8],[42,2,42,4],[43,2,43,4],[44,2,44,4],[21,1,21,2],[28,0,28,19],[25,0,25,19],[26,12,26,13],[26,14,26,15],[26,16,26,17],[27,16,27,17],[27,14,27,15]]}
["Solicitud de Compra"]
["Contrato de agregación  de material pedagogico de MinEducación "]
[]
["Información de la Entidad Compradora"]
[]
[null,"Nombre de la Entidad:",null,null,null,null,null,null,null,"NIT:"]
[]
[null,"Dirección de la Entidad:",null,null,null,null,null,null,null,"Municipio:"]
[]
[null,"Nombre del Comprador:",null,null,null,null,null,null,null,"Teléfono"]
[null,null,null,null,null,null,null,null,null,null,null,null,"ext"]
[null,"Correo del comprador"]
[]
["Fechas estimadas"]
[]
[null,"fecha de solicitud de compra"]
[]
[]
[]
["Requerimientos para las Entregas"]
[]
[null,"Filas a agregar o eliminar:"]
[]
[null,1]
[]
["Información sedes"]
["Item","Departamento",null,null,"Ciudad",null,null,"Nombre del establecimiento educativo ",null,null,"Dirección del establecimiento educativo (entrega)",null,"rector colegio (responsable de recibir Material Pedagogico",null,"Telefono de contacto",null,"Correo de contacto",null,"Codigo dane Sede","Codigo dane Colegio"]
[1]
["1. Si requiere agregue o elimine filas"]
[]
["Productos"]
[]
[null,"Lote","lote 1 Norte de Santander, Arauca, Meta, Soacha, Neiva e Ibagué."]
[]
[null,"No.","Tipo de Material Pedagogico ",null,null,"Sede 1","Cantidad total a comprar","Precio unitario","Precio con gravámen","Valor total"]
[{"$f":"VLOOKUP($C$33&$C36,Precios!$A$2:$G$51,6,0)","v":"Manuales de lectura y escritura para estudiantes - primero de PrimariaL 1"},1,"Manuales de lectura y escritura para estudiantes - primero de Primaria",null,null,null,{"$f":"SUM(F36:F36)","v":0},{"$f":"VLOOKUP($C$33&$C36,Precios!$A$2:$G$51,4,0)","v":3216},{"$f":"((H36/(1-$H$59))-H36)+H36","v":3216},{"$f":"G36*I36","v":0},{"$f":"VLOOKUP($C$33&$C36,Precios!$A$2:$G$51,5,0)","v":"PANAMERICANA FORMAS E IMPRESOS S.A."}]
[{"$f":"VLOOKUP($C$33&$C37,Precios!$A$2:$G$51,6,0)","v":"Guías para docentes - primero de primariaL 1"},2,"Guías para docentes - primero de primaria","Guías para docentes - primero de primaria","Guías para docentes - primero de primaria",null,0,{"$f":"VLOOKUP($C$33&$C37,Precios!$A$2:$G$51,4,0)","v":6192},{"$f":"((H37/(1-$H$59))-H37)+H37","v":6192},{"$f":"G37*I37","v":0},{"$f":"VLOOKUP($C$33&$C37,Precios!$A$2:$G$51,5,0)","v":"PANAMERICANA FORMAS E IMPRESOS S.A."}]
[{"$f":"VLOOKUP($C$33&$C38,Precios!$A$2:$G$51,6,0)","v":"Manuales de lectura y escritura para estudiantes - segundo de primariaL 1"},3,"Manuales de lectura y escritura para estudiantes - segundo de primaria","Manuales de lectura y escritura para estudiantes - segundo de primaria","Manuales de lectura y escritura para estudiantes - segundo de primaria",null,0,{"$f":"VLOOKUP($C$33&$C38,Precios!$A$2:$G$51,4,0)","v":2160},2160,0,{"$f":"VLOOKUP($C$33&$C38,Precios!$A$2:$G$51,5,0)","v":"PANAMERICANA FORMAS E IMPRESOS S.A."}]
[{"$f":"VLOOKUP($C$33&$C39,Precios!$A$2:$G$51,6,0)","v":"Guías para docentes - segundo de primariaL 1"},4,"Guías para docentes - segundo de primaria","Guías para docentes - segundo de primaria","Guías para docentes - segundo de primaria",null,0,{"$f":"VLOOKUP($C$33&$C39,Precios!$A$2:$G$51,4,0)","v":6192},6192,0,{"$f":"VLOOKUP($C$33&$C39,Precios!$A$2:$G$51,5,0)","v":"PANAMERICANA FORMAS E IMPRESOS S.A."}]
[{"$f":"VLOOKUP($C$33&$C40,Precios!$A$2:$G$51,6,0)","v":"Manuales de lectura y escritura para estudiantes - tercero de primariaL 1"},5,"Manuales de lectura y escritura para estudiantes - tercero de primaria","Manuales de lectura y escritura para estudiantes - tercero de primaria","Manuales de lectura y escritura para estudiantes - tercero de primaria",null,0,{"$f":"VLOOKUP($C$33&$C40,Precios!$A$2:$G$51,4,0)","v":3183},3183,0,{"$f":"VLOOKUP($C$33&$C40,Precios!$A$2:$G$51,5,0)","v":"PANAMERICANA FORMAS E IMPRESOS S.A."}]
[{"$f":"VLOOKUP($C$33&$C41,Precios!$A$2:$G$51,6,0)","v":"Guías para docentes - tercero de primariaL 1"},6,"Guías para docentes - tercero de primaria","Guías para docentes - tercero de primaria","Guías para docentes - tercero de primaria",null,0,{"$f":"VLOOKUP($C$33&$C41,Precios!$A$2:$G$51,4,0)","v":6192},6192,0,{"$f":"VLOOKUP($C$33&$C41,Precios!$A$2:$G$51,5,0)","v":"PANAMERICANA FORMAS E IMPRESOS S.A."}]
[{"$f":"VLOOKUP($C$33&$C42,Precios!$A$2:$G$51,6,0)","v":"Manuales de lectura y escritura para estudiantes - cuarto de primariaL 1"},7,"Manuales de lectura y escritura para estudiantes - cuarto de primaria","Manuales de lectura y escritura para estudiantes - cuarto de primaria","Manuales de lectura y escritura para estudiantes - cuarto de primaria",null,0,{"$f":"VLOOKUP($C$33&$C42,Precios!$A$2:$G$51,4,0)","v":3073},3073,0,{"$f":"VLOOKUP($C$33&$C42,Precios!$A$2:$G$51,5,0)","v":"PANAMERICANA FORMAS E IMPRESOS S.A."}]
[{"$f":"VLOOKUP($C$33&$C43,Precios!$A$2:$G$51,6,0)","v":"Guías para docentes - cuarto de primariaL 1"},8,"Guías para docentes - cuarto de primaria","Guías para docentes - cuarto de primaria","Guías para docentes - cuarto de primaria",null,0,{"$f":"VLOOKUP($C$33&$C43,Precios!$A$2:$G$51,4,0)","v":5573},5573,0,{"$f":"VLOOKUP($C$33&$C43,Precios!$A$2:$G$51,5,0)","v":"PANAMERICANA FORMAS E IMPRESOS S.A."}]
[{"$f":"VLOOKUP($C$33&$C44,Precios!$A$2:$G$51,6,0)","v":"Manuales de lectura y escritura para estudiantes - quinto de primariaL 1"},9,"Manuales de lectura y escritura para estudiantes - quinto de primaria","Manuales de lectura y escritura para estudiantes - quinto de primaria","Manuales de lectura y escritura para estudiantes - quinto de primaria",null,0,{"$f":"VLOOKUP($C$33&$C44,Precios!$A$2:$G$51,4,0)","v":2581},2581,0,{"$f":"VLOOKUP($C$33&$C44,Precios!$A$2:$G$51,5,0)","v":"PANAMERICANA FORMAS E IMPRESOS S.A."}]
[{"$f":"VLOOKUP($C$33&$C45,Precios!$A$2:$G$51,6,0)","v":"Guías para docentes - quinto de primariaL 1"},10,"Guías para docentes - quinto de primaria","Guías para docentes - quinto de primaria","Guías para docentes - quinto de primaria",null,0,{"$f":"VLOOKUP($C$33&$C45,Precios!$A$2:$G$51,4,0)","v":6192},6192,0,{"$f":"VLOOKUP($C$33&$C45,Precios!$A$2:$G$51,5,0)","v":"PANAMERICANA FORMAS E IMPRESOS S.A."}]
[]
[null,null,null,null,null,null,null,null,"Subtotal",{"$f":"+SUM(J36:J45)","v":0}]
[null,null,null,null,null,null,null,null,"IVA",{"$f":"+J47*0.16","v":0},{"$f":"J48","v":0}]
[null,null,null,null,null,null,null,null,"Total ",{"$f":"+J47+J48","v":0}]
[]
["Gravámenes adicionales (estampillas)"]
[]
["Si los hay, indique los gravámenes adicionales (estampilllas) a los que está sujeta la Orden de Compra. Son gravámens adiconales por ejemplo; estampillas y demás impuestos territoriales. Los impuestos como ICA y retención en la fuente NO son gravámenes adicionales."]
[]
[]
["No.","Descripción ",null,null,null,null,null,"% Gravámen"]
[1]
[]
[null,null,null,null,"Total Gravámenes adicionales",null,null,{"$f":"SUM(H57:I57)","v":0}]

{"sheet":"csv","index":3,"n_rows":14,"n_cols":51,"rows_kept":14,"cut":false,"hidden":true,"merged":[]}
["Requisition","Record Identifier","Submit For Approval?","Need By Date","Justification","Department Name","Buyer Note","Requested By (Email)","Requested By (Login)","PCard Name","Ship To Name","Ship To Id","Ship To Attention","Ship To Street1","Ship To Street2","Ship To City","Ship To State","Ship To Postal Code","Ship to Country Code","Ship to Country Name","Ship To Location Code","N.I.T.","nit","Mecanismo de agregaciÃ³n*","acuerdo_marco_de_precios*","Necesidad del bien o servicio*","necesidad_del_bien_o_servicio*","NÃºmero de cotizaciÃ³n","num_cotizacion","Modalidad de    selecciÃ³n*","modalidad_de_seleccion*","DestinaciÃ³n del gasto*","destinacin_del_gasto*","Origen de los    recursos*","origen_de_los____recursos*","Supervisor de la Orden de Compra*","supervisor_1*","Correo electrÃ³nico del supervisor*","correo_electrnico_del_supervisor*","TelÃ©fono del      supervisor*","telefono_supervisor*","Vencimiento de la Orden de Compra*","contract_expiration_date*","Especificaciones adicionales de entrega","especificaciones_adicionales_de_entrega","GravÃ¡menes      adicionales","gravamenes","IntegraciÃ³n con SIIF","siif_entity","Acepto tÃ©rminos y condiciones*","acepto_trminos_y_condiciones*"]
["Requisition Line","Record Identifier","Line Number","Catalog Item Number","Catalog Item Name","Non Catalog Item Description","Supplier Part Number","Quantity","Price","Need By Date","Supplier Name","Supplier Number","UOM Code","Commodity Name","Contract Name","Currency Code","Asset Tags","Chart of Account Name","Account Name","Account Code","Account Segment 1","Account Segment 2","Account Segment 3","Account Segment 4","Account Segment 5","Account Segment 6","Account Segment 7","Account Segment 8","Account Segment 9","Account Segment 10","Account Segment 11","Account Segment 12","Account Segment 13","Account Segment 14","Account Segment 15","Account Segment 16","Account Segment 17","Account Segment 18","Account Segment 19","Account Segment 20","Account Allocation Amount","Account Allocation Percent","Payment Term Code","Shipping Term Code","Budget Period Name"]
["Requisition","RECORD1","No",null,null,"Digite nombre de la entidad",null,"crear.entidad@colombiacompra.gov.co","digite.usuario",null,"Direccion",null,null,null,null,null,null,null,null,null,null,null,null,"Material PedagÃ³gico","Material PedagÃ³gico","Necesidad","Necesidad",null,null,"ContrataciÃ³n directa (AgregaciÃ³n demanda)","ContrataciÃ³n directa (AgregaciÃ³n demanda)","Funcionamiento","Funcionamiento","Recursos propios","Recursos propios","Digite supervisor","Digite supervisor","Digite correo","Digite correo",1,1,"2020-01-01","2020-01-01",null,null,"Gravamenes","Gravamenes","SÃ­","SÃ­"]
["Requisition Line","RECORD1",1,null,"\"Manuales de lectura y escritura para estudiantes - primero de PrimariaL 1\"",null,null,10,"\"3216\"",null,"PANAMERICANA FORMAS E IMPRESOS S.A.",null,"Und","AgregaciÃ³n de la demanda",null,"COP"]
["Requisition Line","RECORD1",2,null,"\"GuÃ­as para docentes - primero de primariaL 1\"",null,null,10,"\"6192\"",null,"PANAMERICANA FORMAS E IMPRESOS S.A.",null,"Und","AgregaciÃ³n de la demanda",null,"COP"]
["Requisition Line","RECORD1",3,null,"\"Manuales de lectura y escritura para estudiantes - segundo de primariaL 1\"",null,null,10,"\"2160\"",null,"PANAMERICANA FORMAS E IMPRESOS S.A.",null,"Und","AgregaciÃ³n de la demanda",null,"COP"]
["Requisition Line","RECORD1",4,null,"\"GuÃ­as para docentes - segundo de primariaL 1\"",null,null,10,"\"6192\"",null,"PANAMERICANA FORMAS E IMPRESOS S.A.",null,"Und","AgregaciÃ³n de la demanda",null,"COP"]
["Requisition Line","RECORD1",5,null,"\"Manuales de lectura y escritura para estudiantes - tercero de primariaL 1\"",null,null,10,"\"3183\"",null,"PANAMERICANA FORMAS E IMPRESOS S.A.",null,"Und","AgregaciÃ³n de la demanda",null,"COP"]
["Requisition Line","RECORD1",6,null,"\"GuÃ­as para docentes - tercero de primariaL 1\"",null,null,10,"\"6192\"",null,"PANAMERICANA FORMAS E IMPRESOS S.A.",null,"Und","AgregaciÃ³n de la demanda",null,"COP"]
["Requisition Line","RECORD1",7,null,"\"Manuales de lectura y escritura para estudiantes - cuarto de primariaL 1\"",null,null,10,"\"3073\"",null,"PANAMERICANA FORMAS E IMPRESOS S.A.",null,"Und","AgregaciÃ³n de la demanda",null,"COP"]
["Requisition Line","RECORD1",8,null,"\"GuÃ­as para docentes - cuarto de primariaL 1\"",null,null,10,"\"5573\"",null,"PANAMERICANA FORMAS E IMPRESOS S.A.",null,"Und","AgregaciÃ³n de la demanda",null,"COP"]
["Requisition Line","RECORD1",9,null,"\"Manuales de lectura y escritura para estudiantes - quinto de primariaL 1\"",null,null,10,"\"2581\"",null,"PANAMERICANA FORMAS E IMPRESOS S.A.",null,"Und","AgregaciÃ³n de la demanda",null,"COP"]
["Requisition Line","RECORD1",10,null,"\"GuÃ­as para docentes - quinto de primariaL 1\"",null,null,10,"\"6192\"",null,"PANAMERICANA FORMAS E IMPRESOS S.A.",null,"Und","AgregaciÃ³n de la demanda",null,"COP"]
["Requisition Line","RECORD1",11,null,"\"IVA\"",null,null,1,"\"71286.4\"",null,"PANAMERICANA FORMAS E IMPRESOS S.A.",null,"Und","AgregaciÃ³n de la demanda",null,"COP"]

{"sheet":"Precios","index":4,"n_rows":51,"n_cols":7,"rows_kept":51,"cut":false,"hidden":true,"merged":[]}
["llaveLocal","lote","descripción","Precio Unitario","proveedor","llave","otro"]
[{"$f":"B2&C2","v":"lote 1 Norte de Santander, Arauca, Meta, Soacha, Neiva e Ibagué.Manuales de lectura y escritura para estudiantes - primero de Primaria"},"lote 1 Norte de Santander, Arauca, Meta, Soacha, Neiva e Ibagué.","Manuales de lectura y escritura para estudiantes - primero de Primaria",3216,"PANAMERICANA FORMAS E IMPRESOS S.A.","Manuales de lectura y escritura para estudiantes - primero de PrimariaL 1"," lote 1 Norte de Santander, Arauca, Meta, Soacha, Neiva e Ibagué."]
[{"$f":"B3&C3","v":"lote 1 Norte de Santander, Arauca, Meta, Soacha, Neiva e Ibagué.Guías para docentes - primero de primaria"},"lote 1 Norte de Santander, Arauca, Meta, Soacha, Neiva e Ibagué.","Guías para docentes - primero de primaria",6192,"PANAMERICANA FORMAS E IMPRESOS S.A.","Guías para docentes - primero de primariaL 1"," lote 2 Valle, Cauca, Palmira, Cali, Manizales."]
["lote 1 Norte de Santander, Arauca, Meta, Soacha, Neiva e Ibagué.Manuales de lectura y escritura para estudiantes - segundo de primaria","lote 1 Norte de Santander, Arauca, Meta, Soacha, Neiva e Ibagué.","Manuales de lectura y escritura para estudiantes - segundo de primaria",2160,"PANAMERICANA FORMAS E IMPRESOS S.A.","Manuales de lectura y escritura para estudiantes - segundo de primariaL 1"," lote 3 Sucre, Córdoba, Montería, Cartagena."]
["lote 1 Norte de Santander, Arauca, Meta, Soacha, Neiva e Ibagué.Guías para docentes - segundo de primaria","lote 1 Norte de Santander, Arauca, Meta, Soacha, Neiva e Ibagué.","Guías para docentes - segundo de primaria",6192,"PANAMERICANA FORMAS E IMPRESOS S.A.","Guías para docentes - segundo de primariaL 1"," lote 4 Antioquia, Medellín."]
["lote 1 Norte de Santander, Arauca, Meta, Soacha, Neiva e Ibagué.Manuales de lectura y escritura para estudiantes - tercero de primaria","lote 1 Norte de Santander, Arauca, Meta, Soacha, Neiva e Ibagué.","Manuales de lectura y escritura para estudiantes - tercero de primaria",3183,"PANAMERICANA FORMAS E IMPRESOS S.A.","Manuales de lectura y escritura para estudiantes - tercero de primariaL 1"," lote 5 Atlántico, Barranquilla, Soledad, Valledupar, Santa Marta"]
["lote 1 Norte de Santander, Arauca, Meta, Soacha, Neiva e Ibagué.Guías para docentes - tercero de primaria","lote 1 Norte de Santander, Arauca, Meta, Soacha, Neiva e Ibagué.","Guías para docentes - tercero de primaria",6192,"PANAMERICANA FORMAS E IMPRESOS S.A.","Guías para docentes - tercero de primariaL 1"]
["lote 1 Norte de Santander, Arauca, Meta, Soacha, Neiva e Ibagué.Manuales de lectura y escritura para estudiantes - cuarto de primaria","lote 1 Norte de Santander, Arauca, Meta, Soacha, Neiva e Ibagué.","Manuales de lectura y escritura para estudiantes - cuarto de primaria",3073,"PANAMERICANA FORMAS E IMPRESOS S.A.","Manuales de lectura y escritura para estudiantes - cuarto de primariaL 1"]
["lote 1 Norte de Santander, Arauca, Meta, Soacha, Neiva e Ibagué.Guías para docentes - cuarto de primaria","lote 1 Norte de Santander, Arauca, Meta, Soacha, Neiva e Ibagué.","Guías para docentes - cuarto de primaria",5573,"PANAMERICANA FORMAS E IMPRESOS S.A.","Guías para docentes - cuarto de primariaL 1"]
["lote 1 Norte de Santander, Arauca, Meta, Soacha, Neiva e Ibagué.Manuales de lectura y escritura para estudiantes - quinto de primaria","lote 1 Norte de Santander, Arauca, Meta, Soacha, Neiva e Ibagué.","Manuales de lectura y escritura para estudiantes - quinto de primaria",2581,"PANAMERICANA FORMAS E IMPRESOS S.A.","Manuales de lectura y escritura para estudiantes - quinto de primariaL 1"]
["lote 1 Norte de Santander, Arauca, Meta, Soacha, Neiva e Ibagué.Guías para docentes - quinto de primaria","lote 1 Norte de Santander, Arauca, Meta, Soacha, Neiva e Ibagué.","Guías para docentes - quinto de primaria",6192,"PANAMERICANA FORMAS E IMPRESOS S.A.","Guías para docentes - quinto de primariaL 1"]
["lote 2 Valle, Cauca, Palmira, Cali, Manizales.Manuales de lectura y escritura para estudiantes - primero de Primaria","lote 2 Valle, Cauca, Palmira, Cali, Manizales.","Manuales de lectura y escritura para estudiantes - primero de Primaria",3150,"PANAMERICANA FORMAS E IMPRESOS S.A.","Manuales de lectura y escritura para estudiantes - primero de PrimariaL 2",1.0417488314571219]
["lote 2 Valle, Cauca, Palmira, Cali, Manizales.Guías para docentes - primero de primaria","lote 2 Valle, Cauca, Palmira, Cali, Manizales.","Guías para docentes - primero de primaria",5000,"PANAMERICANA FORMAS E IMPRESOS S.A.","Guías para docentes - primero de primariaL 2",1.4063371441729307]
["lote 2 Valle, Cauca, Palmira, Cali, Manizales.Manuales de lectura y escritura para estudiantes - segundo de primaria","lote 2 Valle, Cauca, Palmira, Cali, Manizales.","Manuales de lectura y escritura para estudiantes - segundo de primaria",2367,"PANAMERICANA FORMAS E IMPRESOS S.A.","Manuales de lectura y escritura para estudiantes - segundo de primariaL 2",1.0804545617344266]
["lote 2 Valle, Cauca, Palmira, Cali, Manizales.Guías para docentes - segundo de primaria","lote 2 Valle, Cauca, Palmira, Cali, Manizales.","Guías para docentes - segundo de primaria",5000,"PANAMERICANA FORMAS E IMPRESOS S.A.","Guías para docentes - segundo de primariaL 2",1.4934657347646623]
["lote 2 Valle, Cauca, Palmira, Cali, Manizales.Manuales de lectura y escritura para estudiantes - tercero de primaria","lote 2 Valle, Cauca, Palmira, Cali, Manizales.","Manuales de lectura y escritura para estudiantes - tercero de primaria",3010,"PANAMERICANA FORMAS E IMPRESOS S.A.","Manuales de lectura y escritura para estudiantes - tercero de primariaL 2",1.6986856416316063]
["lote 2 Valle, Cauca, Palmira, Cali, Manizales.Guías para docentes - tercero de primaria","lote 2 Valle, Cauca, Palmira, Cali, Manizales.","Guías para docentes - tercero de primaria",5000,"PANAMERICANA FORMAS E IMPRESOS S.A.","Guías para docentes - tercero de primariaL 2",1.5862946542775709]
["lote 2 Valle, Cauca, Palmira, Cali, Manizales.Manuales de lectura y escritura para estudiantes - cuarto de primaria","lote 2 Valle, Cauca, Palmira, Cali, Manizales.","Manuales de lectura y escritura para estudiantes - cuarto de primaria",2850,"PANAMERICANA FORMAS E IMPRESOS S.A.","Manuales de lectura y escritura para estudiantes - cuarto de primariaL 2",1.5483329049892438]
["lote 2 Valle, Cauca, Palmira, Cali, Manizales.Guías para docentes - cuarto de primaria","lote 2 Valle, Cauca, Palmira, Cali, Manizales.","Guías para docentes - cuarto de primaria",5000,"PANAMERICANA FORMAS E IMPRESOS S.A.","Guías para docentes - cuarto de primariaL 2",1.4418494365782284]
["lote 2 Valle, Cauca, Palmira, Cali, Manizales.Manuales de lectura y escritura para estudiantes - quinto de primaria","lote 2 Valle, Cauca, Palmira, Cali, Manizales.","Manuales de lectura y escritura para estudiantes - quinto de primaria",2750,"PANAMERICANA FORMAS E IMPRESOS S.A.","Manuales de lectura y escritura para estudiantes - quinto de primariaL 2",1.3322800953138365]
["lote 2 Valle, Cauca, Palmira, Cali, Manizales.Guías para docentes - quinto de primaria","lote 2 Valle, Cauca, Palmira, Cali, Manizales.","Guías para docentes - quinto de primaria",5000,"PANAMERICANA FORMAS E IMPRESOS S.A.","Guías para docentes - quinto de primariaL 2",1.6023631244601599]
["lote 3 Sucre, Córdoba, Montería, Cartagena.Manuales de lectura y escritura para estudiantes - primero de Primaria","lote 3 Sucre, Córdoba, Montería, Cartagena.","Manuales de lectura y escritura para estudiantes - primero de Primaria",3180,"PANAMERICANA FORMAS E IMPRESOS S.A.","Manuales de lectura y escritura para estudiantes - primero de PrimariaL 3",1.4275477545491051]
["lote 3 Sucre, Córdoba, Montería, Cartagena.Guías para docentes - primero de primaria","lote 3 Sucre, Córdoba, Montería, Cartagena.","Guías para docentes - primero de primaria",5000,"PANAMERICANA FORMAS E IMPRESOS S.A.","Guías para docentes - primero de primariaL 3",1.1507955416699454]
["lote 3 Sucre, Córdoba, Montería, Cartagena.Manuales de lectura y escritura para estudiantes - segundo de primaria","lote 3 Sucre, Córdoba, Montería, Cartagena.","Manuales de lectura y escritura para estudiantes - segundo de primaria",2385,"PANAMERICANA FORMAS E IMPRESOS S.A.","Manuales de lectura y escritura para estudiantes - segundo de primariaL 3",1.5151401854369626]
["lote 3 Sucre, Córdoba, Montería, Cartagena.Guías para docentes - segundo de primaria","lote 3 Sucre, Córdoba, Montería, Cartagena.","Guías para docentes - segundo de primaria",5000,"PANAMERICANA FORMAS E IMPRESOS S.A.","Guías para docentes - segundo de primariaL 3",1.4298391584366941]
["lote 3 Sucre, Córdoba, Montería, Cartagena.Manuales de lectura y escritura para estudiantes - tercero de primaria","lote 3 Sucre, Córdoba, Montería, Cartagena.","Manuales de lectura y escritura para estudiantes - tercero de primaria",3130,"PANAMERICANA FORMAS E IMPRESOS S.A.","Manuales de lectura y escritura para estudiantes - tercero de primariaL 3",1.9242004632268137]
["lote 3 Sucre, Córdoba, Montería, Cartagena.Guías para docentes - tercero de primaria","lote 3 Sucre, Córdoba, Montería, Cartagena.","Guías para docentes - tercero de primaria",5000,"PANAMERICANA FORMAS E IMPRESOS S.A.","Guías para docentes - tercero de primariaL 3",1.742434492097741]
["lote 3 Sucre, Córdoba, Montería, Cartagena.Manuales de lectura y escritura para estudiantes - cuarto de primaria","lote 3 Sucre, Córdoba, Montería, Cartagena.","Manuales de lectura y escritura para estudiantes - cuarto de primaria",3015,"PANAMERICANA FORMAS E IMPRESOS S.A.","Manuales de lectura y escritura para estudiantes - cuarto de primariaL 3",1.4699816571171656]
["lote 3 Sucre, Córdoba, Montería, Cartagena.Guías para docentes - cuarto de primaria","lote 3 Sucre, Córdoba, Montería, Cartagena.","Guías para docentes - cuarto de primaria",5000,"PANAMERICANA FORMAS E IMPRESOS S.A.","Guías para docentes - cuarto de primariaL 3",1.7877882105869314]
["lote 3 Sucre, Córdoba, Montería, Cartagena.Manuales de lectura y escritura para estudiantes - quinto de primaria","lote 3 Sucre, Córdoba, Montería, Cartagena.","Manuales de lectura y escritura para estudiantes - quinto de primaria",2865,"PANAMERICANA FORMAS E IMPRESOS S.A.","Manuales de lectura y escritura para estudiantes - quinto de primariaL 3",1.8232527569188333]
["lote 3 Sucre, Córdoba, Montería, Cartagena.Guías para docentes - quinto de primaria","lote 3 Sucre, Córdoba, Montería, Cartagena.","Guías para docentes - quinto de primaria",5000,"PANAMERICANA FORMAS E IMPRESOS S.A.","Guías para docentes - quinto de primariaL 3",1.0941040138798561]
["lote 4 Antioquia, Medellín.Manuales de lectura y escritura para estudiantes - primero de Primaria","lote 4 Antioquia, Medellín.","Manuales de lectura y escritura para estudiantes - primero de Primaria",2700,"ARTE IMPRESORES S.A","Manuales de lectura y escritura para estudiantes - primero de PrimariaL 4",1.9160197393246474]
["lote 4 Antioquia, Medellín.Guías para docentes - primero de primaria","lote 4 Antioquia, Medellín.","Guías para docentes - primero de primaria",4850,"ARTE IMPRESORES S.A","Guías para docentes - primero de primariaL 4",1.1616508392116112]
["lote 4 Antioquia, Medellín.Manuales de lectura y escritura para estudiantes - segundo de primaria","lote 4 Antioquia, Medellín.","Manuales de lectura y escritura para estudiantes - segundo de primaria",2200,"ARTE IMPRESORES S.A","Manuales de lectura y escritura para estudiantes - segundo de primariaL 4",1.1957849300335872]
["lote 4 Antioquia, Medellín.Guías para docentes - segundo de primaria","lote 4 Antioquia, Medellín.","Guías para docentes - segundo de primaria",4850,"ARTE IMPRESORES S.A","Guías para docentes - segundo de primariaL 4",1.6612784540471561]
["lote 4 Antioquia, Medellín.Manuales de lectura y escritura para estudiantes - tercero de primaria","lote 4 Antioquia, Medellín.","Manuales de lectura y escritura para estudiantes - tercero de primaria",2710,"ARTE IMPRESORES S.A","Manuales de lectura y escritura para estudiantes - tercero de primariaL 4",1.7777059814491984]
["lote 4 Antioquia, Medellín.Guías para docentes - tercero de primaria","lote 4 Antioquia, Medellín.","Guías para docentes - tercero de primaria",4850,"ARTE IMPRESORES S.A","Guías para docentes - tercero de primariaL 4",1.1313579692544111]
["lote 4 Antioquia, Medellín.Manuales de lectura y escritura para estudiantes - cuarto de primaria","lote 4 Antioquia, Medellín.","Manuales de lectura y escritura para estudiantes - cuarto de primaria",2500,"ARTE IMPRESORES S.A","Manuales de lectura y escritura para estudiantes - cuarto de primariaL 4",1.9449353346590468]
["lote 4 Antioquia, Medellín.Guías para docentes - cuarto de primaria","lote 4 Antioquia, Medellín.","Guías para docentes - cuarto de primaria",4850,"ARTE IMPRESORES S.A","Guías para docentes - cuarto de primariaL 4",1.0325677778462026]
["lote 4 Antioquia, Medellín.Manuales de lectura y escritura para estudiantes - quinto de primaria","lote 4 Antioquia, Medellín.","Manuales de lectura y escritura para estudiantes - quinto de primaria",2500,"ARTE IMPRESORES S.A","Manuales de lectura y escritura para estudiantes - quinto de primariaL 4",1.8067434561384306]
["lote 4 Antioquia, Medellín.Guías para docentes - quinto de primaria","lote 4 Antioquia, Medellín.","Guías para docentes - quinto de primaria",4850,"ARTE IMPRESORES S.A","Guías para docentes - quinto de primariaL 4",1.6951738592826562]
["lote 5 Atlántico, Barranquilla, Soledad, Valledupar, Santa MartaManuales de lectura y escritura para estudiantes - primero de Primaria","lote 5 Atlántico, Barranquilla, Soledad, Valledupar, Santa Marta","Manuales de lectura y escritura para estudiantes - primero de Primaria",3906,"CARVAJAL SOLUCIONES DE COMUNICACION S.A.S.","Manuales de lectura y escritura para estudiantes - primero de PrimariaL 5",1.6974165788043973]
["lote 5 Atlántico, Barranquilla, Soledad, Valledupar, Santa MartaGuías para docentes - primero de primaria","lote 5 Atlántico, Barranquilla, Soledad, Valledupar, Santa Marta","Guías para docentes - primero de primaria",6192,"CARVAJAL SOLUCIONES DE COMUNICACION S.A.S.","Guías para docentes - primero de primariaL 5",1.0549880069062465]
["lote 5 Atlántico, Barranquilla, Soledad, Valledupar, Santa MartaManuales de lectura y escritura para estudiantes - segundo de primaria","lote 5 Atlántico, Barranquilla, Soledad, Valledupar, Santa Marta","Manuales de lectura y escritura para estudiantes - segundo de primaria",2936,"CARVAJAL SOLUCIONES DE COMUNICACION S.A.S.","Manuales de lectura y escritura para estudiantes - segundo de primariaL 5",1.0068334385856628]
["lote 5 Atlántico, Barranquilla, Soledad, Valledupar, Santa MartaGuías para docentes - segundo de primaria","lote 5 Atlántico, Barranquilla, Soledad, Valledupar, Santa Marta","Guías para docentes - segundo de primaria",6192,"CARVAJAL SOLUCIONES DE COMUNICACION S.A.S.","Guías para docentes - segundo de primariaL 5",1.1081181743366089]
["lote 5 Atlántico, Barranquilla, Soledad, Valledupar, Santa MartaManuales de lectura y escritura para estudiantes - tercero de primaria","lote 5 Atlántico, Barranquilla, Soledad, Valledupar, Santa Marta","Manuales de lectura y escritura para estudiantes - tercero de primaria",4102,"CARVAJAL SOLUCIONES DE COMUNICACION S.A.S.","Manuales de lectura y escritura para estudiantes - tercero de primariaL 5",1.8827938933634663]
["lote 5 Atlántico, Barranquilla, Soledad, Valledupar, Santa MartaGuías para docentes - tercero de primaria","lote 5 Atlántico, Barranquilla, Soledad, Valledupar, Santa Marta","Guías para docentes - tercero de primaria",6192,"CARVAJAL SOLUCIONES DE COMUNICACION S.A.S.","Guías para docentes - tercero de primariaL 5",1.0503283034861681]
["lote 5 Atlántico, Barranquilla, Soledad, Valledupar, Santa MartaManuales de lectura y escritura para estudiantes - cuarto de primaria","lote 5 Atlántico, Barranquilla, Soledad, Valledupar, Santa Marta","Manuales de lectura y escritura para estudiantes - cuarto de primaria",3926,"CARVAJAL SOLUCIONES DE COMUNICACION S.A.S.","Manuales de lectura y escritura para estudiantes - cuarto de primariaL 5",1.1505310822397519]
["lote 5 Atlántico, Barranquilla, Soledad, Valledupar, Santa MartaGuías para docentes - cuarto de primaria","lote 5 Atlántico, Barranquilla, Soledad, Valledupar, Santa Marta","Guías para docentes - cuarto de primaria",6192,"CARVAJAL SOLUCIONES DE COMUNICACION S.A.S.","Guías para docentes - cuarto de primariaL 5",1.8482962198555164]
["lote 5 Atlántico, Barranquilla, Soledad, Valledupar, Santa MartaManuales de lectura y escritura para estudiantes - quinto de primaria","lote 5 Atlántico, Barranquilla, Soledad, Valledupar, Santa Marta","Manuales de lectura y escritura para estudiantes - quinto de primaria",3725,"CARVAJAL SOLUCIONES DE COMUNICACION S.A.S.","Manuales de lectura y escritura para estudiantes - quinto de primariaL 5",1.3821572069489163]
["lote 5 Atlántico, Barranquilla, Soledad, Valledupar, Santa MartaGuías para docentes - quinto de primaria","lote 5 Atlántico, Barranquilla, Soledad, Valledupar, Santa Marta","Guías para docentes - quinto de primaria",6192,"CARVAJAL SOLUCIONES DE COMUNICACION S.A.S.","Guías para docentes - quinto de primariaL 5",1.1405263925573561]